bitfinex/quotes_BTCUSD_20250618
["timestamp","ask_amount","ask_price","bid_price","bid_amount"]
[1750250979527,5.2527225,104630.0,104620.0,0.45052558]
[1750250979736,5.44387226,104630.0,104620.0,0.46964173]
[1750250979948,5.44387226,104630.0,104620.0,0.4600837]
[1750250980373,5.44387226,104630.0,104620.0,0.45052558]
[1750250980633,5.11462657,104630.0,104620.0,0.54676734]
[1750250980850,5.33444832,104630.0,104620.0,0.56588331]
[1750250981282,5.14329802,104630.0,104620.0,0.57544107]
[1750250981489,4.92612059,104630.0,104620.0,0.57544107]
[1750250981705,5.14329802,104630.0,104620.0,0.57544107]
[1750250982143,5.14329802,104630.0,104620.0,0.56588331]
[1750250982348,5.14329802,104630.0,104620.0,0.57544107]
[1750250982560,5.13374072,104630.0,104620.0,0.57544107]
[1750250983235,4.90700589,104630.0,104620.0,0.57544107]
[1750250983471,5.10963343,104630.0,104620.0,0.57544107]
[1750250983703,5.11919009,104630.0,104620.0,0.57544107]
[1750250983911,5.10963343,104630.0,104620.0,0.57544107]
[1750250984140,5.10963343,104630.0,104620.0,0.55752004]
[1750250984356,5.10663343,104630.0,104620.0,0.55752004]
[1750250984604,5.11719018,104630.0,104620.0,0.55752004]
[1750250984823,5.13630424,104630.0,104620.0,0.55752004]
[1750250985036,5.23245346,104630.0,104620.0,0.55752004]
[1750250985258,5.23245346,104630.0,104620.0,0.39820004]
[1750250985259,5.22845346,104630.0,104620.0,0.39820004]
[1750250985476,5.22845346,104630.0,104620.0,0.55748004]
[1750250985477,5.24001076,104630.0,104620.0,0.55748004]
[1750250985688,5.23045337,104630.0,104620.0,0.55748004]
[1750250985899,5.24001058,104630.0,104620.0,0.55748004]
[1750250986345,5.23045337,104630.0,104620.0,0.55748004]
[1750250987240,5.11519009,104630.0,104620.0,0.55748004]
[1750250987627,5.12474684,104630.0,104620.0,0.55748004]
[1750250987848,5.13430378,104630.0,104620.0,0.55748004]
[1750250988980,5.11519009,104630.0,104620.0,0.55748004]
[1750250989835,5.10563343,104630.0,104620.0,0.55748004]
[1750250990933,4.88274643,104630.0,104620.0,0.55748004]
[1750250992278,4.89230309,104630.0,104620.0,0.55748004]
[1750250993370,4.88274643,104630.0,104620.0,0.55748004]
[1750250993582,4.89230309,104630.0,104620.0,0.59980004]
[1750250993802,4.88274643,104630.0,104620.0,0.59980004]
[1750250994276,4.89230318,104630.0,104620.0,0.59980004]
[1750250994498,4.88274643,104630.0,104620.0,0.59980004]
[1750250995902,4.94312251,104630.0,104620.0,0.59980004]
[1750250996130,4.89230309,104630.0,104620.0,0.59980004]
[1750250996348,4.88274643,104630.0,104620.0,0.59980004]
[1750250999148,4.89230309,104630.0,104620.0,0.59980004]
[1750250999362,4.6846825,104630.0,104620.0,0.59980004]
[1750250999574,4.90185993,104630.0,104620.0,0.59980004]
[1750251000249,4.89230309,104630.0,104620.0,0.59980004]
[1750251001172,4.91141705,104630.0,104620.0,0.59980004]
[1750251001398,4.91141696,104630.0,104620.0,0.59980004]
[1750251001642,5.01712348,104630.0,104620.0,0.59980004]
[1750251001884,5.21783045,104630.0,104620.0,0.3710881]
[1750251002123,5.41589474,104630.0,104620.0,0.21028455]
[1750251002363,5.40633753,104630.0,104620.0,0.36932455]
[1750251002667,5.40633753,104630.0,104620.0,0.37888258]
[1750251003795,4.89230346,104630.0,104620.0,0.39799828]
[1750251004029,4.88274643,104630.0,104620.0,0.46149828]
[1750251004241,4.89230309,104630.0,104620.0,0.46149828]
[1750251004467,4.91141706,104630.0,104620.0,0.46149828]
[1750251004711,4.89230309,104630.0,104620.0,0.46149828]
[1750251004959,4.90186003,104630.0,104620.0,0.46149828]
[1750251005213,4.91141715,104630.0,104620.0,0.46149828]
[1750251005728,4.90185993,104630.0,104620.0,0.46149828]
[1750251006485,4.91141696,104630.0,104620.0,0.46149828]
[1750251006949,4.90185993,104630.0,104620.0,0.46149828]
[1750251007915,4.91141687,104630.0,104620.0,0.46149828]
[1750251008421,4.91141687,104630.0,104620.0,0.50365828]
[1750251008670,4.9209739,104630.0,104620.0,0.50365828]
[1750251008918,5.00756609,104630.0,104620.0,0.50365828]
[1750251009364,4.99800915,104630.0,104620.0,0.50365828]
[1750251009592,4.89230309,104630.0,104620.0,0.50365828]
[1750251009816,4.90186003,104630.0,104620.0,0.50365828]
[1750251010338,4.89230309,104630.0,104620.0,0.50365828]
[1750251010549,4.90185993,104630.0,104620.0,0.50365828]
[1750251011196,4.89230309,104630.0,104620.0,0.50365828]
[1750251011418,4.89230309,104630.0,104620.0,0.59990004]
[1750251011632,4.90185993,104630.0,104620.0,0.59990004]
[1750251012704,4.89230309,104630.0,104620.0,0.59990004]
[1750251012916,4.90185984,104630.0,104620.0,0.59990004]
[1750251013130,4.88274643,104630.0,104620.0,0.59990004]
[1750251013350,4.89230318,104630.0,104620.0,0.59990004]
[1750251013825,4.88274643,104630.0,104620.0,0.59990004]
[1750251014055,4.89230318,104630.0,104620.0,0.59990004]
[1750251015154,4.90186002,104630.0,104620.0,0.59990004]
[1750251015810,4.88274643,104630.0,104620.0,0.59990004]
[1750251016027,4.89230318,104630.0,104620.0,0.59990004]
[1750251017188,4.88274643,104630.0,104620.0,0.59990004]
[1750251017675,4.89230318,104630.0,104620.0,0.59990004]
[1750251017907,4.89230327,104630.0,104620.0,0.59990004]
[1750251020878,4.90186021,104630.0,104620.0,0.59990004]
[1750251021093,4.88274643,104630.0,104620.0,0.59990004]
[1750251022442,4.88274643,104630.0,104620.0,0.59986004]
[1750251022653,4.88274643,104630.0,104620.0,0.57118631]
[1750251022875,4.88274643,104630.0,104620.0,0.56162819]
[1750251023141,4.88274643,104630.0,104620.0,0.5711864]
[1750251023373,5.00756646,104630.0,104620.0,0.20190176]
[1750251023583,5.19871704,104630.0,104620.0,0.36090176]
[1750251023795,5.1891601,104630.0,104620.0,0.32920176]
[1750251024024,4.86329534,104620.0,104610.0,0.0647]
[1750251024255,5.2976502,104620.0,104610.0,0.20310176]
[1750251024484,0.02867656,104610.0,104600.0,0.18407487]
[1750251024706,0.46303142,104610.0,104600.0,0.48147663]
[1750251025138,0.47259046,104610.0,104600.0,0.49103621]
[1750251025583,0.66377677,104610.0,104600.0,0.48147663]
[1750251025816,0.4942421,104610.0,104600.0,0.48347663]
[1750251026037,0.48468352,104610.0,104600.0,0.48347672]
[1750251026252,0.48468352,104610.0,104600.0,0.3340364]
[1750251026471,0.48468352,104610.0,104600.0,0.4930364]
[1750251026728,0.48468352,104610.0,104600.0,0.50459598]
[1750251026965,0.47512421,104610.0,104600.0,0.50459598]
[1750251027402,0.47512421,104610.0,104600.0,0.53669598]
[1750251027636,0.46556499,104610.0,104600.0,0.53669598]
[1750251027842,0.48468352,104610.0,104600.0,0.56929598]
[1750251028290,0.67586983,104610.0,104600.0,0.35857672]
[1750251028509,0.67586983,104610.0,104600.0,0.51757672]
[1750251028727,0.67586983,104610.0,104600.0,0.30685695]
[1750251028935,0.66631107,104610.0,104600.0,0.50801722]
[1750251029358,0.66631107,104610.0,104600.0,0.52713694]
[1750251029616,0.66631107,104610.0,104600.0,0.51757717]
[1750251030047,0.65675203,104610.0,104600.0,0.51757717]
[1750251031474,0.65675203,104610.0,104600.0,0.52713703]
[1750251031686,0.6446597,104610.0,104600.0,0.53669671]
[1750251032142,0.6446597,104610.0,104600.0,0.56739671]
[1750251032358,0.6446597,104610.0,104600.0,0.35857717]
[1750251032576,0.6446597,104610.0,104600.0,0.51757717]
[1750251032789,0.71105998,104610.0,104600.0,0.52713703]
[1750251033473,0.71105998,104610.0,104600.0,0.53669671]
[1750251033682,0.71105998,104610.0,104600.0,0.52713703]
[1750251033890,0.71105998,104610.0,104600.0,0.5366968]
[1750251034310,0.71105998,104610.0,104600.0,0.52713703]
[1750251034951,0.71105998,104610.0,104600.0,0.5366968]
[1750251037584,0.6446597,104610.0,104600.0,0.53669635]
[1750251037811,0.00955895,104610.0,104600.0,0.56769589]
[1750251038038,0.45347294,104610.0,104600.0,0.56769589]
[1750251038266,0.47259083,104610.0,104600.0,0.56769589]
[1750251038741,0.2408563,104610.0,104600.0,0.56769589]
[1750251038974,0.25997456,104610.0,104600.0,0.56769589]
[1750251039187,0.46072,104610.0,104600.0,0.55813631]
[1750251039422,0.45116133,104610.0,104600.0,0.55813631]
[1750251039662,0.45116133,104610.0,104600.0,0.54857663]
[1750251039929,0.44160238,104610.0,104600.0,0.50841686]
[1750251040167,0.44160238,104610.0,104600.0,0.51797663]
[1750251040404,0.44160238,104610.0,104600.0,0.55007663]
[1750251040940,0.44160238,104610.0,104600.0,0.55963631]
[1750251042676,0.51449434,104610.0,104600.0,0.55963631]
[1750251042909,0.44160238,104610.0,104600.0,0.52753631]
[1750251043121,0.44160238,104610.0,104600.0,0.31691722]
[1750251043330,5.10417138,104610.0,104600.0,0.47627722]
[1750251043549,5.10417138,104610.0,104600.0,0.10024176]
[1750251043550,5.09461225,104610.0,104600.0,0.10024176]
[1750251043796,5.08505303,104610.0,104600.0,0.21508022]
[1750251044010,5.08505303,104610.0,104600.0,0.41584493]
[1750251044223,5.08505303,104610.0,104600.0,0.42540497]
[1750251044471,4.86331462,104610.0,104600.0,0.42340497]
[1750251044726,4.86331462,104610.0,104600.0,0.4729246]
[1750251044982,4.86431462,104610.0,104600.0,0.47292406]
[1750251045218,4.86631462,104610.0,104600.0,0.47292406]
[1750251045464,4.86331462,104610.0,104600.0,0.47292406]
[1750251045705,4.86531462,104610.0,104600.0,0.47292406]
[1750251045955,4.86631462,104610.0,104600.0,0.47292406]
[1750251048203,4.87587366,104610.0,104600.0,0.47292406]
[1750251048455,4.87587366,104610.0,104600.0,0.46336393]
[1750251049768,4.69424556,104610.0,104600.0,0.47292351]
[1750251050206,4.71336327,104610.0,104600.0,0.47292351]
[1750251050452,0.01255858,104610.0,104600.0,0.66948712]
[1750251050660,0.003,104610.0,104600.0,0.66948712]
[1750251051727,0.002,104610.0,104600.0,0.66948712]
[1750251051945,0.01911369,104630.0,104620.0,0.21984213]
[1750251052184,4.68168269,104630.0,104620.0,0.53714389]
[1750251052395,4.67212575,104630.0,104620.0,0.53714389]
[1750251052626,4.68168269,104630.0,104620.0,0.53714389]
[1750251053072,4.69123981,104630.0,104620.0,0.53714389]
[1750251053281,4.78738903,104630.0,104620.0,0.53714389]
[1750251053715,4.69223981,104630.0,104620.0,0.53714389]
[1750251054162,4.68268269,104630.0,104620.0,0.53714389]
[1750251054594,4.69223981,104630.0,104620.0,0.53714389]
[1750251054800,4.68268259,104630.0,104620.0,0.53714389]
[1750251055010,4.67312575,104630.0,104620.0,0.53714389]
[1750251055284,4.67512575,104630.0,104620.0,0.53714389]
[1750251055496,4.68468259,104630.0,104620.0,0.53714389]
[1750251055677,4.665569,104630.0,104620.0,0.53714389]
[1750251055911,4.67512566,104630.0,104620.0,0.53714389]
[1750251056127,4.6846826,104630.0,104620.0,0.53714389]
[1750251057581,4.69423963,104630.0,104620.0,0.53714389]
[1750251057810,4.6846826,104630.0,104620.0,0.53714389]
[1750251058323,4.6846825,104630.0,104620.0,0.53714389]
[1750251059157,4.67512566,104630.0,104620.0,0.53714389]
[1750251059372,0.003,104630.0,104620.0,0.61188708]
[1750251060424,4.68168086,104640.0,104630.0,0.28512111]
[1750251060629,4.68168086,104640.0,104630.0,0.42348287]
[1750251060840,4.70079336,104640.0,104630.0,0.42348287]
[1750251061048,4.70079327,104640.0,104630.0,0.42348287]
[1750251061258,4.69123697,104640.0,104630.0,0.42348287]
[1750251061697,4.70079327,104640.0,104630.0,0.42348287]
[1750251061937,4.69323697,104640.0,104630.0,0.42348287]
[1750251062143,4.70279327,104640.0,104630.0,0.42348287]
[1750251062344,4.69323697,104640.0,104630.0,0.42348287]
[1750251062556,4.70279317,104640.0,104630.0,0.42348287]
[1750251062759,4.70379317,104640.0,104630.0,0.42348287]
[1750251063177,4.69423697,104640.0,104630.0,0.42348287]
[1750251063928,4.68468086,104640.0,104630.0,0.42348287]
[1750251064450,0.003,104640.0,104630.0,0.5027955]
[1750251064648,0.203,104640.0,104630.0,0.5027955]
[1750251065101,0.003,104640.0,104630.0,0.5027955]
[1750251067965,0.003,104640.0,104630.0,0.5315065]
[1750251068182,0.001,104640.0,104630.0,0.5315065]
[1750251069019,0.21915812,104660.0,104650.0,0.25137911]
[1750251069242,0.21915812,104660.0,104650.0,0.50678087]
[1750251069664,0.20960392,104660.0,104650.0,0.50678087]
[1750251070295,0.21920541,104660.0,104650.0,0.53958087]
[1750251070713,0.22620541,104660.0,104650.0,0.53958087]
[1750251071133,0.22620532,104660.0,104650.0,0.53958087]
[1750251072345,0.21665131,104660.0,104650.0,0.53958087]
[1750251072744,0.22620541,104660.0,104650.0,0.53958087]
[1750251073154,0.21665131,104660.0,104650.0,0.53958087]
[1750251073359,0.2166514,104660.0,104650.0,0.53958087]
[1750251073764,0.21665131,104660.0,104650.0,0.53958087]
[1750251074168,0.20709739,104660.0,104650.0,0.566883]
[1750251074598,0.00709739,104660.0,104650.0,0.53958087]
[1750251075219,0.20709739,104660.0,104650.0,0.53958087]
[1750251075424,4.862569,104670.0,104660.0,0.21975801]
[1750251075635,4.68167575,104670.0,104660.0,0.27163211]
[1750251075833,4.68167556,104670.0,104660.0,0.27163211]
[1750251076412,4.68167556,104670.0,104660.0,0.35084231]
[1750251076617,4.69122903,104670.0,104660.0,0.36787387]
[1750251076775,4.69522903,104670.0,104660.0,0.36787387]
[1750251077186,4.70122903,104670.0,104660.0,0.36787387]
[1750251077402,4.69167556,104670.0,104660.0,0.36787387]
[1750251077764,4.68212219,104670.0,104660.0,0.39857387]
[1750251077981,4.69167556,104670.0,104660.0,0.39857387]
[1750251078600,4.70122912,104670.0,104660.0,0.36787387]
[1750251079259,4.68212219,104670.0,104660.0,0.36787387]
[1750251079476,4.70122903,104670.0,104660.0,0.36787387]
[1750251079897,4.70122894,104670.0,104660.0,0.36787387]
[1750251081707,5.05960916,104670.0,104660.0,0.34876576]
[1750251081935,5.05005588,104670.0,104660.0,0.50776585]
[1750251082186,0.05000885,104660.0,104650.0,0.2006687]
[1750251082402,0.25001067,104650.0,104640.0,0.25254811]
[1750251082641,0.26912126,104650.0,104640.0,0.44026402]
[1750251083107,0.25956569,104650.0,104640.0,0.28126402]
[1750251083346,0.2286656,104650.0,104640.0,0.44026402]
[1750251084452,0.21911022,104650.0,104640.0,0.44026402]
[1750251084878,0.2286656,104650.0,104640.0,0.44026402]
[1750251085504,0.21911022,104650.0,104640.0,0.44026402]
[1750251085737,0.21911013,104650.0,104640.0,0.44026402]
[1750251086629,0.20955502,104650.0,104640.0,0.44026402]
[1750251086864,0.20955493,104650.0,104640.0,0.44026402]
[1750251087348,0.21911004,104650.0,104640.0,0.44026402]
[1750251087577,0.20955493,104650.0,104640.0,0.44026402]
[1750251087810,0.21910995,104650.0,104640.0,0.47176402]
[1750251089226,0.20955493,104650.0,104640.0,0.47176402]
[1750251089436,4.862569,104650.0,104640.0,0.5642054]
[1750251089640,4.662569,104650.0,104640.0,0.47176402]
[1750251090235,4.67212384,104650.0,104640.0,0.47176402]
[1750251090441,0.00955484,104650.0,104640.0,0.47176402]
[1750251091077,0.20955484,104650.0,104640.0,0.47176402]
[1750251091474,0.21910995,104650.0,104640.0,0.47176402]
[1750251092007,0.21910986,104650.0,104640.0,0.47176402]
[1750251092658,0.01910986,104650.0,104640.0,0.47176402]
[1750251092880,0.21910986,104650.0,104640.0,0.47176402]
[1750251093379,0.29489382,104660.0,104650.0,0.21977938]
[1750251093603,4.95746282,104660.0,104650.0,0.21977938]
[1750251094875,4.95746282,104660.0,104650.0,0.21022427]
[1750251095085,4.95746282,104660.0,104650.0,0.21977956]
[1750251095295,4.95746282,104660.0,104650.0,0.22933476]
[1750251095516,4.76636763,104660.0,104650.0,0.22933476]
[1750251095754,4.76836763,104660.0,104650.0,0.38833476]
[1750251096191,4.76836763,104660.0,104650.0,0.39788987]
[1750251096396,4.77036763,104660.0,104650.0,0.39788987]
[1750251096603,4.77036709,104660.0,104650.0,0.38833421]
[1750251096817,4.78947639,104660.0,104650.0,0.38833421]
[1750251097033,4.98057136,104660.0,104650.0,0.3692239]
[1750251097260,5.06716638,104660.0,104650.0,0.35962889]
[1750251097488,5.06716638,104660.0,104650.0,0.36918446]
[1750251097700,5.06716638,104660.0,104650.0,0.38829531]
[1750251097915,4.97101716,104660.0,104650.0,0.38829531]
[1750251098123,4.97101716,104660.0,104650.0,0.39784996]
[1750251098321,4.77992219,104660.0,104650.0,0.39784996]
[1750251098564,4.77992219,104660.0,104650.0,0.38829494]
[1750251098980,4.97101716,104660.0,104650.0,0.37873965]
[1750251099187,5.05761191,104660.0,104650.0,0.36918427]
[1750251099392,5.04805735,104660.0,104650.0,0.3596288]
[1750251100054,4.95190813,104660.0,104650.0,0.3596288]
[1750251100278,4.95190813,104660.0,104650.0,0.36918427]
[1750251100928,4.95190813,104660.0,104650.0,0.21022427]
[1750251101146,4.95190813,104660.0,104650.0,0.36918427]
[1750251101815,0.2717239,104650.0,104630.0,0.26490706]
[1750251102037,4.68168077,104640.0,104630.0,0.26194102]
[1750251102252,4.69123688,104640.0,104630.0,0.42090102]
[1750251102500,4.70079318,104640.0,104630.0,0.42090102]
[1750251103386,4.71034957,104640.0,104630.0,0.42090102]
[1750251103612,4.74185085,104640.0,104630.0,0.42090102]
[1750251103834,4.93298234,104640.0,104630.0,0.21226418]
[1750251104057,4.91386993,104640.0,104630.0,0.4229013]
[1750251104705,4.91386993,104640.0,104630.0,0.43245824]
[1750251104937,4.72273844,104640.0,104630.0,0.44201508]
[1750251105176,4.76774959,104640.0,104630.0,0.44301508]
[1750251105879,4.94576993,104640.0,104630.0,0.23626976]
[1750251106110,4.94944594,104640.0,104630.0,0.20408]
[1750251106667,4.94944594,104640.0,104630.0,0.16196]
[1750251107644,4.94944594,104640.0,104630.0,0.003]
[1750251108201,4.94944594,104640.0,104630.0,0.002]
[1750251108489,5.02280628,104640.0,104630.0,0.002]
[1750251108732,0.2102639,104630.0,104620.0,0.44003837]
[1750251108950,4.87283345,104630.0,104620.0,0.44003773]
[1750251109815,4.6816826,104630.0,104620.0,0.44003773]
[1750251110033,4.68168159,104640.0,104630.0,0.21982139]
[1750251110281,4.7103502,104640.0,104630.0,0.22937823]
[1750251110504,4.69123715,104640.0,104630.0,0.26157823]
[1750251110722,4.70079354,104640.0,104630.0,0.26157823]
[1750251110938,4.67212484,104640.0,104630.0,0.26157823]
[1750251111150,4.69123697,104640.0,104630.0,0.29257823]
[1750251111592,4.69123688,104640.0,104630.0,0.29257823]
[1750251112513,4.68168077,104640.0,104630.0,0.29257823]
[1750251112998,4.662569,104640.0,104630.0,0.38881999]
[1750251114084,4.488966,104640.0,104630.0,0.38881999]
[1750251114300,4.565882,104650.0,104640.0,0.21980038]
[1750251114527,4.565882,104650.0,104640.0,0.37876038]
[1750251114964,4.565882,104650.0,104640.0,0.38831631]
[1750251115205,4.565882,104650.0,104640.0,0.41851631]
[1750251115926,4.55832634,104650.0,104640.0,0.41851631]
[1750251116152,4.56032634,104650.0,104640.0,0.41851631]
[1750251116639,4.56032634,104650.0,104640.0,0.49316278]
[1750251116860,4.56032634,104650.0,104640.0,0.41851631]
[1750251117529,4.5412154,104650.0,104640.0,0.41851631]
[1750251117766,4.55077078,104650.0,104640.0,0.44941631]
[1750251118263,4.56032625,104650.0,104640.0,0.44941631]
[1750251118493,4.56032625,104650.0,104640.0,0.49153631]
[1750251119380,4.52210518,104650.0,104640.0,0.49153631]
[1750251119677,4.54121531,104650.0,104640.0,0.49153631]
[1750251119901,0.004,104650.0,104640.0,0.58777807]
[1750251120823,0.01355484,104650.0,104640.0,0.58777807]
[1750251121052,0.01155484,104650.0,104640.0,0.58777807]
[1750251121726,0.00955484,104650.0,104640.0,0.58777807]
[1750251121981,0.23826508,104660.0,104650.0,0.21977938]
[1750251122224,0.28765952,104660.0,104650.0,0.22933476]
[1750251122443,0.28765952,104660.0,104650.0,0.21977956]
[1750251122664,0.28765952,104660.0,104650.0,0.22933467]
[1750251122885,0.28765952,104660.0,104650.0,0.23888969]
[1750251123321,0.23071043,104660.0,104650.0,0.44016969]
[1750251123536,0.24026508,104660.0,104650.0,0.44016969]
[1750251124238,0.24226508,104660.0,104650.0,0.44016969]
[1750251124470,0.23271043,104660.0,104650.0,0.44016969]
[1750251124688,0.21360149,104660.0,104650.0,0.47326969]
[1750251124905,0.2136014,104660.0,104650.0,0.55242398]
[1750251125130,0.2136014,104660.0,104650.0,0.58492398]
[1750251125352,0.2136014,104660.0,104650.0,0.50576969]
[1750251126063,0.2231556,104660.0,104650.0,0.50576969]
[1750251126282,0.2136014,104660.0,104650.0,0.50576969]
[1750251126719,0.23270988,104660.0,104650.0,0.50576969]
[1750251126935,0.24226444,104660.0,104650.0,0.30448969]
[1750251127149,0.24226444,104660.0,104650.0,0.30459458]
[1750251127393,0.23270988,104660.0,104650.0,0.46359458]
[1750251127613,0.20404739,104660.0,104650.0,0.46359458]
[1750251127846,0.2231556,104660.0,104650.0,0.49479458]
[1750251128068,0.2211556,104660.0,104650.0,0.49479458]
[1750251128289,0.2191556,104660.0,104650.0,0.49479458]
[1750251128520,0.23270998,104660.0,104650.0,0.49479458]
[1750251128749,0.2231556,104660.0,104650.0,0.57301136]
[1750251128970,0.2211556,104660.0,104650.0,0.57301136]
[1750251129410,0.2116014,104660.0,104650.0,0.49479458]
[1750251129670,0.0211556,104660.0,104650.0,0.49479458]
[1750251130553,0.2211556,104660.0,104650.0,0.49479458]
[1750251131221,0.2116014,104660.0,104650.0,0.49479458]
[1750251131446,0.00204739,104660.0,104650.0,0.59103634]
[1750251131666,0.00204739,104660.0,104650.0,0.43203634]
[1750251131894,0.02115541,104660.0,104650.0,0.59099634]
[1750251132165,0.01160131,104660.0,104650.0,0.59099634]
[1750251132347,0.00204739,104660.0,104650.0,0.59099634]
[1750251133265,0.01160131,104660.0,104650.0,0.59099634]
[1750251133734,0.02115551,104660.0,104650.0,0.59099634]
[1750251133963,0.0307098,104660.0,104650.0,0.55979634]
[1750251134446,0.04026418,104660.0,104650.0,0.55979634]
[1750251134675,0.0307098,104660.0,104650.0,0.46355458]
[1750251134903,0.02115551,104660.0,104650.0,0.46355458]
[1750251135149,0.01160131,104660.0,104650.0,0.56213319]
[1750251135398,0.01160131,104660.0,104650.0,0.49365458]
[1750251135625,0.02115541,104660.0,104650.0,0.49365458]
[1750251135839,0.01160131,104660.0,104650.0,0.49365458]
[1750251136074,0.02115541,104660.0,104650.0,0.49365458]
[1750251136572,0.00204739,104660.0,104650.0,0.49365458]
[1750251137033,0.00204739,104660.0,104650.0,0.46213319]
[1750251137280,0.01160131,104660.0,104650.0,0.46213319]
[1750251137507,0.00204739,104660.0,104650.0,0.46213319]
[1750251138654,0.0116014,104660.0,104650.0,0.48989634]
[1750251138873,0.00204739,104660.0,104650.0,0.48989634]
[1750251140230,0.03232128,104680.0,104670.0,0.2101841]
[1750251140448,4.7088958,104680.0,104670.0,0.36914419]
[1750251140666,4.69273494,104680.0,104670.0,0.36914419]
[1750251140876,4.69273494,104680.0,104670.0,0.38825122]
[1750251141101,4.69273494,104680.0,104670.0,0.36914419]
[1750251141769,4.69273494,104680.0,104670.0,0.37869775]
[1750251141986,4.69473494,104680.0,104670.0,0.38825122]
[1750251142206,4.69673494,104680.0,104670.0,0.38825122]
[1750251142645,4.69673494,104680.0,104670.0,0.36914428]
[1750251142896,4.7174822,104680.0,104670.0,0.36914428]
[1750251143118,4.6871822,104680.0,104670.0,0.36914428]
[1750251143367,4.6871822,104680.0,104670.0,0.37869793]
[1750251143620,4.69673494,104680.0,104670.0,0.43080486]
[1750251144051,4.68351886,104680.0,104670.0,0.38825149]
[1750251144274,4.74452632,104680.0,104670.0,0.39780486]
[1750251144495,4.54974008,104680.0,104670.0,0.39780376]
[1750251144721,4.55929291,104680.0,104670.0,0.43080376]
[1750251145012,4.55929364,104680.0,104670.0,0.42125057]
[1750251145199,4.54974118,104680.0,104670.0,0.41169729]
[1750251145426,4.7540492,104680.0,104670.0,0.21018392]
[1750251146326,4.7540492,104680.0,104670.0,0.21973739]
[1750251146769,4.7540492,104680.0,104670.0,0.37865739]
[1750251147420,4.7540492,104680.0,104670.0,0.41911067]
[1750251148118,0.04225414,104680.0,104670.0,0.62572227]
[1750251151017,0.04225414,104680.0,104670.0,0.55730571]
[1750251155041,0.0040474,104680.0,104670.0,0.55730571]
[1750251157573,0.0040474,104680.0,104670.0,0.59938571]
[1750251158968,0.04331526,104680.0,104670.0,0.59938571]
[1750251159180,0.0040474,104680.0,104670.0,0.59938571]
[1750251159602,0.0040474,104680.0,104670.0,0.68130398]
[1750251161881,0.04321976,104680.0,104670.0,0.68130398]
[1750251165190,0.05277195,104680.0,104670.0,0.39838571]
[1750251165403,0.25277195,104680.0,104670.0,0.56694571]
[1750251165617,0.26232432,104680.0,104670.0,0.56694571]
[1750251165840,0.25277195,104680.0,104670.0,0.56694571]
[1750251166060,0.26232423,104680.0,104670.0,0.56694571]
[1750251166307,0.24321976,104680.0,104670.0,0.36598571]
[1750251166528,0.06232432,104680.0,104670.0,0.59864571]
[1750251166743,0.06232432,104680.0,104670.0,0.56694571]
[1750251166979,0.07187678,104680.0,104670.0,0.56694571]
[1750251168085,0.06232432,104680.0,104670.0,0.56694571]
[1750251169012,0.04321976,104680.0,104670.0,0.59864571]
[1750251169659,0.05277186,104680.0,104670.0,0.59864571]
[1750251170095,0.04321976,104680.0,104670.0,0.59864571]
[1750251170300,0.25277186,104680.0,104670.0,0.59864571]
[1750251171217,0.05277186,104680.0,104670.0,0.59864571]
[1750251171716,0.25277186,104680.0,104670.0,0.59864571]
[1750251171960,0.05277186,104680.0,104670.0,0.59864571]
[1750251172421,0.25277186,104680.0,104670.0,0.59864571]
[1750251172667,0.05277186,104680.0,104670.0,0.59864571]
[1750251173154,0.06232414,104680.0,104670.0,0.59864571]
[1750251173847,0.4724878,104680.0,104670.0,0.31821847]
[1750251174083,0.00955365,104670.0,104660.0,0.21020364]
[1750251174313,0.28203683,104670.0,104660.0,0.21020418]
[1750251174536,0.48203683,104670.0,104660.0,0.41116418]
[1750251175237,0.48203683,104670.0,104660.0,0.42171856]
[1750251176144,0.48203683,104670.0,104660.0,0.43127285]
[1750251176368,0.29096012,104670.0,104660.0,0.44082705]
[1750251176586,0.30051386,104670.0,104660.0,0.44082641]
[1750251177685,0.48203747,104670.0,104660.0,0.41216418]
[1750251177899,0.48203747,104670.0,104660.0,0.42171847]
[1750251179858,0.55001679,104670.0,104660.0,0.42171847]
[1750251180104,0.35001679,104670.0,104660.0,0.43127267]
[1750251180560,0.35001679,104670.0,104660.0,0.001]
[1750251180825,4.68905501,104650.0,104640.0,0.15286661]
[1750251181056,4.75065501,104650.0,104640.0,0.3538268]
[1750251181274,4.75065501,104650.0,104640.0,0.37293911]
[1750251181488,4.75065501,104650.0,104640.0,0.38249513]
[1750251181740,4.75065501,104650.0,104640.0,0.37293911]
[1750251182250,4.74109999,104650.0,104640.0,0.363383]
[1750251182733,4.81813845,104650.0,104640.0,0.20296]
[1750251182957,4.81813845,104650.0,104640.0,0.21251657]
[1750251183403,4.84704055,104650.0,104640.0,0.21251657]
[1750251183631,4.84704055,104650.0,104640.0,0.20296]
[1750251184308,4.84704055,104650.0,104640.0,0.41320454]
[1750251184736,4.84704055,104650.0,104640.0,0.20296]
[1750251184949,4.84704055,104650.0,104640.0,0.40364797]
[1750251185385,4.75089133,104650.0,104640.0,0.40364797]
[1750251185622,4.71979133,104650.0,104640.0,0.42276038]
[1750251186056,4.71979133,104650.0,104640.0,0.41320427]
[1750251186276,4.71979133,104650.0,104640.0,0.40364797]
[1750251186947,4.5477885,104650.0,104640.0,0.43231649]
[1750251187162,4.7580125,104650.0,104640.0,0.42276056]
[1750251187389,4.74845757,104650.0,104640.0,0.42276056]
[1750251188081,0.27918157,104650.0,104640.0,0.42276056]
[1750251188298,0.44868157,104650.0,104640.0,0.42276056]
[1750251188524,0.41977947,104650.0,104640.0,0.42276056]
[1750251189838,0.41977947,104650.0,104640.0,0.48510726]
[1750251190054,0.41977993,104650.0,104640.0,0.49466337]
[1750251190274,0.41977993,104650.0,104640.0,0.43231667]
[1750251190514,0.2,104650.0,104640.0,0.43231667]
[1750251190758,4.469276,104650.0,104640.0,0.60051436]
[1750251191916,4.47883102,104650.0,104640.0,0.60051436]
[1750251192131,0.20955484,104650.0,104640.0,0.58140113]
[1750251193225,0.00955493,104650.0,104640.0,0.58140113]
[1750251193446,4.4883853,104660.0,104650.0,0.25207938]
[1750251193661,4.49793886,104660.0,104650.0,0.2616344]
[1750251194768,4.49893886,104660.0,104650.0,0.2616344]
[1750251194982,4.5094936,104660.0,104650.0,0.2616344]
[1750251195195,4.49993886,104660.0,104650.0,0.2616344]
[1750251195408,4.49993877,104660.0,104650.0,0.2616344]
[1750251195643,4.50949333,104660.0,104650.0,0.2616344]
[1750251195860,4.33651533,104660.0,104650.0,0.2616344]
[1750251196092,4.33451533,104660.0,104650.0,0.2616344]
[1750251196433,0.03821733,104660.0,104650.0,0.2616344]
[1750251196648,0.24777198,104660.0,104650.0,0.2616344]
[1750251196866,0.24777271,104660.0,104650.0,0.25207938]
[1750251197287,0.23821797,104660.0,104650.0,0.2616344]
[1750251197499,0.23821797,104660.0,104650.0,0.2626344]
[1750251198636,0.22866332,104660.0,104650.0,0.2626344]
[1750251199034,0.2191083,104660.0,104650.0,0.2626344]
[1750251199256,0.22866277,104660.0,104650.0,0.2626344]
[1750251200363,4.296298,104660.0,104650.0,0.47040851]
[1750251201067,4.296298,104660.0,104650.0,0.39117616]
[1750251204533,0.22865984,104670.0,104660.0,0.2509581]